bitfinex/quotes_ETHUSD_20241217
["timestamp","ask_amount","ask_price","bid_price","bid_amount"]
[1734456794843,0.12306122,3964.7,3963.4,0.1756]
[1734456795251,0.0227038,3964.6,3963.4,0.1756]
[1734456795446,2.1646552,3964.5,3963.4,0.1756]
[1734456795633,1.1105268,3964.4,3963.4,0.1756]
[1734456795827,0.61500477,3964.3,3963.4,0.1756]
[1734456796075,0.63784004,3964.3,3963.4,0.1756]
[1734456796946,0.02283527,3964.3,3963.4,0.1756]
[1734456797152,1.0541284,3964.5,3963.4,0.1756]
[1734456797361,0.02283507,3964.2,3963.4,0.1756]
[1734456797551,1.0541284,3964.4,3963.4,0.1756]
[1734456797760,0.02283486,3964.1,3963.4,0.1756]
[1734456797943,1.11064542,3964.5,3963.4,0.1756]
[1734456797944,1.0541284,3964.5,3963.4,0.1756]
[1734456798130,0.02283465,3964.0,3963.4,0.1756]
[1734456798332,1.0541284,3964.4,3963.4,0.1756]
[1734456798540,0.02283444,3963.9,3963.4,0.1756]
[1734456798850,1.0541284,3964.4,3963.4,0.1756]
[1734456799030,0.02283423,3963.8,3963.4,0.1756]
[1734456799233,1.0541284,3964.3,3963.4,0.1756]
[1734456799434,0.02283402,3963.7,3963.4,0.1756]
[1734456799670,1.0541284,3964.4,3963.4,0.1756]
[1734456800197,0.02283527,3964.3,3963.4,0.1756]
[1734456800495,2.18483662,3964.3,3963.4,0.1756]
[1734456800628,1.07389563,3964.3,3963.4,0.1756]
[1734456800835,0.90086144,3964.3,3963.4,0.1756]
[1734456802227,0.01976723,3964.3,3963.4,0.1756]
[1734456802431,1.07389563,3964.3,3963.4,0.1756]
[1734456803949,0.01976723,3964.3,3963.4,0.1756]
[1734456804688,1.0541284,3964.1,3963.4,0.1756]
[1734456804832,1.0541284,3963.9,3963.4,0.1756]
[1734456805039,2.4290476,3963.8,3963.4,0.1756]
[1734456805356,0.2635321,3963.8,3963.4,0.1756]
[1734456805575,1.0541284,3964.0,3963.4,0.1756]
[1734456805734,1.0541284,3964.1,3963.4,0.1756]
[1734456806735,1.0541284,3963.7,3963.0,0.1756]
[1734456806979,2.38149611,3963.1,3962.1,0.1756]
[1734456807136,1.0541284,3963.0,3962.1,0.1756]
[1734456807336,2.16640564,3962.9,3962.1,0.1756]
[1734456807554,0.50168171,3963.0,3962.1,0.1756]
[1734456807555,2.16640564,3962.8,3962.1,0.1756]
[1734456807736,1.11213148,3962.7,3962.1,0.1756]
[1734456807935,1.0541284,3962.8,3962.1,0.1756]
[1734456809173,2.08287432,3963.0,3962.2,0.55]
[1734456809174,1.0541284,3963.0,3962.2,0.55]
[1734456809375,1.0541284,3963.3,3962.4,0.55]
[1734456809687,1.0541284,3963.5,3962.6,0.55]
[1734456810248,1.0541284,3963.6,3962.6,0.55]
[1734456810449,2.16655787,3963.6,3962.6,0.55]
[1734456810848,4.54805398,3963.5,3962.5,0.1756]
[1734456811068,1.11242947,3963.4,3962.5,0.1756]
[1734456811256,2.16655787,3963.4,3962.5,0.1756]
[1734456812240,2.38149611,3963.1,3962.5,0.1756]
[1734456812464,2.38149611,3963.1,3961.4,0.34924596]
[1734456812465,3.16429611,3963.1,3961.5,0.1756]
[1734456812668,0.42184245,3963.0,3961.5,0.1756]
[1734456813374,1.0541284,3962.9,3961.5,0.1756]
[1734456813676,2.16631052,3962.9,3961.5,0.1756]
[1734456813880,2.38149611,3962.3,3961.5,0.1756]
[1734456814088,2.38149611,3961.9,3961.5,0.1756]
[1734456814271,2.61964572,3961.9,3961.0,0.1756]
[1734456814443,2.38149611,3961.2,3960.3,0.1756]
[1734456815287,2.38149611,3961.2,3958.9,1.56301865]
[1734456815288,2.38149611,3960.8,3958.9,0.1756]
[1734456816552,2.38149611,3960.4,3958.9,0.1756]
[1734456817179,0.23814961,3960.3,3958.9,0.1756]
[1734456817339,2.38149611,3960.0,3958.9,0.1756]
[1734456819079,2.38149611,3960.0,3959.0,0.55]
[1734456819685,2.38149611,3960.0,3958.9,0.1756]
[1734456821173,5.38149611,3960.0,3958.9,0.1756]
[1734456821428,0.7828,3960.1,3958.5,0.1756]
[1734456821429,2.38149611,3959.6,3958.5,0.1756]
[1734456821875,3.0,3959.8,3958.5,0.1756]
[1734456821876,2.38149611,3959.2,3958.5,0.1756]
[1734456823068,2.38149611,3959.6,3958.5,0.1756]
[1734456824006,2.38149611,3960.0,3958.6,0.55]
[1734456824218,2.38149611,3960.0,3958.7,0.1756]
[1734456824797,2.38149611,3960.0,3958.8,0.55]
[1734456825038,2.38149611,3960.0,3958.9,0.1756]
[1734456825394,2.61964572,3960.0,3958.9,0.1756]
[1734456826331,2.38149611,3959.6,3958.9,0.1756]
[1734456827258,2.38149611,3959.6,3957.6,0.1756]
[1734456828544,0.12385872,3959.8,3958.1,0.55]
[1734456828921,0.12385872,3959.8,3958.2,0.1756]
[1734456829119,0.12385872,3959.8,3958.4,0.1756]
[1734456829451,0.12385872,3959.8,3958.7,0.55]
[1734456829808,0.12385872,3959.8,3958.6,0.1756]
[1734456829809,0.6743942,3959.8,3958.6,0.1756]
[1734456830306,3.0,3959.4,3958.6,0.1756]
[1734456832318,3.6743942,3959.8,3958.6,0.1756]
[1734456833532,0.12385872,3959.8,3958.8,0.1756]
[1734456834821,0.12385872,3959.8,3958.9,0.7256]
[1734456835009,2.93705082,3960.3,3958.9,0.55]
[1734456835267,2.93705082,3960.3,3959.2,0.1756]
[1734456836071,0.7907,3961.0,3959.5,0.55]
[1734456836229,0.62522308,3960.9,3959.5,0.55]
[1734456836414,0.62522308,3960.9,3959.6,0.1756]
[1734456837068,0.12789911,3960.5,3959.8,0.1756]
[1734456838132,0.7907,3961.3,3959.8,0.1756]
[1734456838668,3.0,3961.4,3959.6,0.1756]
[1734456838812,3.0,3961.4,3959.7,0.57525228]
[1734456839013,2.93705082,3961.5,3959.6,0.1756]
[1734456839265,2.93705082,3961.5,3959.7,0.1756]
[1734456839559,2.93705082,3961.5,3959.9,0.1756]
[1734456839713,2.93705082,3961.5,3960.1,0.1756]
[1734456839913,3.96590043,3961.9,3960.3,0.55]
[1734456840115,2.652,3962.7,3959.8,0.1756]
[1734456840116,0.7907,3962.2,3959.8,0.1756]
[1734456840365,0.7907,3962.2,3960.0,0.1756]
[1734456840569,0.7907,3962.2,3960.1,0.55]
[1734456840729,0.7907,3962.5,3960.4,0.1756]
[1734456841059,2.93705082,3962.7,3960.5,3.11265082]
[1734456841226,0.52858959,3962.7,3960.7,0.1756]
[1734456841433,0.52858959,3962.7,3960.6,0.91626508]
[1734456841434,0.7907,3962.9,3960.9,0.1756]
[1734456841614,2.93705082,3962.7,3960.7,0.1756]
[1734456842227,3.0,3962.6,3960.7,0.1756]
[1734456842435,3.0,3962.6,3961.0,0.1756]
[1734456842630,3.0,3962.6,3961.2,0.1756]
[1734456842835,3.92511908,3962.6,3961.3,0.55]
[1734456843233,3.92205071,3962.6,3961.3,0.55]
[1734456845064,0.12837392,3962.1,3961.2,0.1756]
[1734456845619,1.008915,3963.3,3961.6,0.1756]
[1734456845848,0.7819,3964.2,3962.2,0.1756]
[1734456846072,0.7819,3964.2,3961.5,0.55]
[1734456846073,1.16314608,3964.1,3961.9,0.1756]
[1734456846355,0.7819,3964.2,3962.3,0.1756]
[1734456847049,2.93705082,3963.9,3962.3,0.1756]
[1734456847216,3.0,3963.8,3962.3,0.1756]
[1734456849662,0.12437659,3963.5,3962.3,0.1756]
[1734456849871,0.12437659,3963.5,3961.6,0.55]
[1734456850016,0.12437659,3963.5,3961.8,0.7256]
[1734456850221,0.12437659,3963.5,3962.0,0.1756]
[1734456850763,0.12437659,3963.5,3962.1,0.1756]
[1734456852018,0.12437659,3963.5,3962.2,0.20083568]
[1734456852368,0.7819,3964.2,3962.3,0.1756]
[1734456852669,0.1239987,3964.0,3962.5,0.1756]
[1734456852980,2.38124663,3964.5,3962.6,0.55]
[1734456853162,2.38124663,3964.5,3962.7,0.1756]
[1734456853667,0.8331,3964.9,3962.9,0.1756]
[1734456853668,2.38124663,3964.9,3962.9,0.1756]
[1734456853835,2.38124663,3964.9,3962.8,0.55]
[1734456853836,2.38124663,3964.9,3963.1,0.55]
[1734456854165,0.8331,3965.3,3963.1,0.55]
[1734456854523,0.8331,3965.3,3963.2,0.1756]
[1734456854956,0.12864912,3964.6,3963.2,0.1756]
[1734456855135,0.8331,3965.3,3963.1,0.55]
[1734456855136,0.8331,3965.6,3963.4,0.1756]
[1734456855346,0.47705038,3965.6,3963.8,0.1756]
[1734456855684,3.35453,3966.0,3964.0,0.1756]
[1734456855825,2.52151,3965.9,3964.0,0.1756]
[1734456856167,2.52163,3965.7,3964.0,0.1756]
[1734456857364,0.12755268,3965.5,3964.0,0.1756]
[1734456857576,0.12755268,3965.5,3964.1,0.55]
[1734456857773,0.12755268,3965.5,3964.2,0.1756]
[1734456858268,0.8331,3966.4,3964.1,0.55]
[1734456858269,3.8331,3966.4,3964.4,0.1756]
[1734456858471,0.64785396,3966.3,3964.4,0.1756]
[1734456858673,3.0,3966.2,3964.4,0.1756]
[1734456858852,2.52137,3966.1,3964.4,0.1756]
[1734456859058,3.0,3966.2,3964.4,0.1756]
[1734456859459,3.0,3966.0,3964.4,0.1756]
[1734456859630,0.552136,3965.9,3964.4,0.1756]
[1734456859828,0.12338447,3965.8,3964.4,0.1756]
[1734456862938,3.0,3966.2,3964.4,0.1756]
[1734456863338,3.0,3965.9,3964.4,0.1756]
[1734456864485,3.8331,3965.8,3964.4,0.1756]
[1734456864780,3.0,3965.4,3964.4,0.1756]
[1734456865535,3.68870635,3965.7,3964.4,0.1756]
[1734456865760,0.68870635,3965.7,3964.4,0.1756]
[1734456866283,3.0,3965.5,3964.4,0.1756]
[1734456866575,0.68870635,3965.7,3964.4,0.1756]
[1734456866804,0.12691409,3965.3,3964.4,0.1756]
[1734456867085,2.92911783,3965.1,3962.7,0.1756]
[1734456867242,3.0,3964.7,3962.7,0.1756]
[1734456867450,2.52245,3964.4,3962.7,0.1756]
[1734456867638,3.0,3964.3,3962.7,0.1756]
[1734456867834,0.552245,3964.2,3962.7,0.1756]
[1734456868460,3.0,3964.9,3962.7,0.1756]
[1734456868680,0.12691409,3965.3,3962.7,0.1756]
[1734456868681,3.12691409,3965.3,3963.1,0.1756]
[1734456869048,2.52212,3965.0,3963.1,0.1756]
[1734456869249,2.52236,3964.6,3963.1,0.1756]
[1734456869657,3.0,3964.9,3963.1,0.1756]
[1734456869861,0.12691409,3965.3,3963.1,0.1756]
[1734456869862,0.84511178,3964.8,3963.1,0.1756]
[1734456870060,3.12691409,3965.3,3963.2,0.1756]
[1734456870259,3.12691409,3965.3,3963.3,0.1756]
[1734456870799,3.0,3965.1,3963.3,0.1756]
[1734456871163,3.12691409,3965.3,3963.3,0.1756]
[1734456871373,2.52194,3965.2,3963.3,0.1756]
[1734456871559,3.26488541,3965.1,3963.3,0.1756]
[1734456872057,3.0,3965.0,3963.3,0.1756]
[1734456872785,2.52239,3964.5,3963.3,0.1756]
[1734456873183,3.0,3964.7,3963.3,0.1756]
[1734456873384,2.52252,3964.3,3963.3,0.1756]
[1734456873703,3.71561783,3965.0,3963.3,0.1756]
[1734456873704,0.252252,3964.2,3963.3,0.1756]
[1734456875197,2.52239,3964.5,3963.3,0.1756]
[1734456875404,3.0,3964.4,3963.3,0.1756]
[1734456876127,5.38054458,3964.9,3963.3,0.1756]
[1734456876313,2.52232,3964.6,3963.3,0.1756]
[1734456876523,3.0,3964.9,3963.3,0.1756]
[1734456876842,2.52239,3964.5,3963.3,0.1756]
[1734456877214,3.0,3964.4,3963.3,0.1756]
[1734456877741,3.16704458,3964.1,3963.3,0.1756]
[1734456877933,2.5229,3963.7,3961.9,0.1756]
[1734456878353,3.0,3963.6,3961.9,0.1756]
[1734456878504,0.3,3963.5,3961.9,0.1756]
[1734456878824,0.7865,3963.4,3961.9,0.1756]
[1734456879342,3.7865,3963.4,3961.9,0.1756]
[1734456880102,3.0,3963.4,3961.9,0.1756]
[1734456880616,2.52309,3963.4,3961.9,0.1756]
[1734456880824,3.582309,3963.3,3961.9,0.1756]
[1734456881120,2.52322,3963.2,3961.9,0.1756]
[1734456881348,3.0,3963.1,3961.9,0.1756]
[1734456881648,2.52329,3963.1,3961.9,0.1756]
[1734456881817,3.0,3963.1,3961.9,0.1756]
[1734456882019,0.3582309,3963.0,3961.9,0.1756]
[1734456882405,2.52352,3962.8,3961.9,0.1756]
[1734456882609,2.38054458,3962.3,3961.9,0.1756]
[1734456883147,2.38054458,3962.7,3961.9,0.1756]
[1734456884931,2.38054458,3963.1,3961.9,0.1756]
[1734456886144,3.12575285,3963.4,3961.9,0.1756]
[1734456889852,3.12575285,3963.4,3961.5,0.1756]
[1734456890166,3.12575285,3963.4,3961.6,0.1756]
[1734456890819,3.12575285,3963.4,3961.8,0.1756]
[1734456891357,3.12575285,3963.4,3961.9,0.02523649]
[1734456891653,3.12575285,3963.4,3961.6,0.55]
[1734456891654,0.12575285,3963.4,3962.0,0.1756]
[1734456891809,0.12575285,3963.4,3962.1,0.02523484]
[1734456892011,2.38054458,3963.5,3961.8,0.1756]
[1734456892333,2.38054458,3963.5,3962.0,0.1756]
[1734456894714,0.12454721,3963.7,3962.0,0.1756]
[1734456895108,2.38054458,3963.9,3962.0,0.20083295]
[1734456895569,2.38054458,3963.9,3962.0,0.1756]
[1734456895914,2.38054458,3963.9,3961.8,0.02523243]
[1734456895915,2.38054458,3964.4,3962.3,0.55]
[1734456896120,1.04544848,3964.8,3962.3,0.55]
[1734456896121,0.12537904,3964.8,3963.1,0.1756]
[1734456896456,2.38054458,3965.3,3963.2,0.20082632]
[1734456896755,2.38054458,3965.3,3963.2,0.1756]
[1734456899854,0.12496219,3965.0,3963.2,0.1756]
[1734456900030,0.12496219,3965.0,3963.4,0.1756]
[1734456900565,5.38054458,3964.9,3963.4,0.1756]
[1734456900925,3.0,3965.2,3963.4,2.38054458]
[1734456901270,3.8105,3965.6,3963.5,0.1756]
[1734456901633,2.38054458,3965.3,3963.5,0.1756]
[1734456901832,2.38054458,3965.3,3963.6,0.25561446]
[1734456902065,2.38054458,3965.3,3963.7,0.1756]
[1734456902654,3.0,3965.2,3963.7,0.1756]
[1734456903036,2.50816528,3965.3,3963.7,0.1756]
[1734456904565,0.1276207,3965.3,3963.7,0.1756]
[1734456904970,0.1276207,3965.3,3963.8,0.1756]
[1734456905287,3.0,3965.8,3963.9,2.55614458]
[1734456905446,1.56817272,3966.1,3964.1,0.1756]
[1734456905447,1.04544848,3966.1,3964.1,0.1756]
[1734456905653,0.12563838,3965.6,3964.1,0.1756]
[1734456909196,2.38054458,3965.4,3964.1,0.1756]
[1734456909418,0.6322383,3965.3,3964.1,0.1756]
[1734456910267,3.6322383,3965.3,3964.1,0.1756]
[1734456910469,2.38054458,3964.6,3964.1,0.1756]
[1734456911211,1.04544848,3965.1,3964.1,0.1756]
[1734456911212,2.38054458,3965.0,3964.1,0.1756]
[1734456911370,3.61967446,3964.9,3964.1,0.1756]
[1734456911769,1.67768678,3965.3,3964.1,0.1756]
[1734456912016,3.6322383,3965.3,3964.1,0.1756]
[1734456912191,2.38054458,3965.4,3964.1,0.1756]
[1734456912394,0.12563838,3965.6,3964.1,0.1756]
[1734456913786,4.90236458,3965.4,3964.1,0.1756]
[1734456913991,5.45096801,3965.4,3964.1,0.1756]
[1734456914206,3.0,3965.2,3964.1,0.1756]
[1734456914397,0.8451078,3965.1,3964.1,0.1756]
[1734456915623,0.8451078,3965.1,3963.2,3.0]
[1734456915624,0.12563838,3965.6,3963.6,0.1756]
[1734456916324,0.12563838,3965.6,3963.8,0.1756]
[1734456916830,0.8162,3966.3,3964.0,3.0]
[1734456916831,1.86701941,3966.3,3964.0,3.0]
[1734456916983,2.92914801,3966.6,3963.9,2.95436968]
[1734456916984,0.8162,3966.6,3964.5,0.1756]
[1734456917178,0.8162,3966.6,3964.6,0.3748486]
[1734456917390,1.01983004,3966.6,3964.8,0.1756]
[1734456917615,0.8162,3966.6,3964.8,0.1756]
[1734456917924,0.12794317,3966.1,3964.8,0.1756]
[1734456921894,3.12794317,3966.1,3964.8,0.1756]
[1734456922109,0.7903,3966.0,3964.8,0.1756]
[1734456922313,2.92914801,3965.8,3964.8,0.1756]
[1734456922625,0.3719448,3965.7,3964.8,0.1756]
[1734456922829,0.12794317,3966.1,3964.8,0.1756]
[1734456923126,3.7903,3966.3,3964.8,0.1756]
[1734456924040,3.0,3966.2,3964.8,0.1756]
[1734456924340,0.7903,3966.3,3964.8,0.1756]
[1734456924939,3.0,3966.5,3964.8,0.1756]
[1734456925097,0.6719448,3966.4,3964.8,0.1756]
[1734456925537,0.005,3966.8,3964.9,0.1756]
[1734456925765,0.005,3966.8,3965.1,0.1756]
[1734456926272,0.1289522,3966.5,3965.1,0.1756]
[1734456926917,0.005,3966.8,3965.2,0.02521517]
[1734456927107,0.005,3966.8,3965.3,0.1756]
[1734456927300,0.005,3966.8,3965.5,0.1756]
[1734456928804,0.005,3966.8,3965.6,0.1756]
[1734456930666,0.005,3966.8,3965.8,0.1756]
[1734456930837,0.005,3966.8,3965.9,0.20081045]
[1734456931567,0.005,3966.8,3965.9,0.1756]
[1734456932264,0.005,3966.8,3965.9,0.20080894]
[1734456932466,0.005,3966.8,3966.2,0.1756]
[1734456933328,0.005,3966.8,3966.3,0.3748486]
[1734456933590,0.005,3966.8,3966.4,0.1756]
[1734456933946,0.005,3966.8,3966.6,0.1756]
[1734456934269,0.005,3966.8,3966.7,0.5504486]
[1734456934572,0.005,3966.8,3966.7,1.28673061]
[1734456934929,0.164281,3966.9,3966.7,1.11113061]
[1734456935125,0.164281,3966.9,3966.8,5.92914801]
[1734456935983,0.164281,3966.9,3966.8,6.09974801]
[1734456936977,0.164281,3966.9,3966.8,0.1706]
[1734456937189,0.164281,3966.9,3966.8,0.62957511]
[1734456938473,0.164281,3966.9,3966.8,0.1706]
[1734456939403,0.164281,3966.9,3966.8,0.19580439]
[1734456939701,0.164281,3966.9,3966.8,0.7206]
[1734456940409,0.164281,3966.9,3966.8,7.02459661]
[1734456941377,0.164281,3966.9,3966.8,7.33261709]
[1734456941549,0.164281,3966.9,3966.8,8.0658788]
[1734456942395,0.164281,3966.9,3966.8,1.58673079]
[1734456942599,0.164281,3966.9,3966.8,0.1706]
[1734456943090,0.164281,3966.9,3966.2,0.1706]
[1734456943261,0.164281,3966.9,3965.6,0.1706]
[1734456943465,0.7995,3966.8,3965.6,0.1706]
[1734456943657,0.7995,3966.8,3965.6,0.5454486]
[1734456944001,0.7995,3966.8,3965.6,0.1706]
[1734456944153,0.164281,3966.9,3965.7,0.3748486]
[1734456944900,0.164281,3966.9,3965.6,0.1706]
[1734456945382,0.5127261,3966.9,3965.6,0.1706]
[1734456945860,0.5127261,3966.9,3965.7,0.02521376]
[1734456946058,0.164281,3966.9,3965.6,0.5454486]
[1734456948258,0.164281,3966.9,3965.6,0.1706]
[1734456948459,0.164281,3966.9,3965.6,0.5454486]
[1734456948895,0.164281,3966.9,3965.8,0.1706]
[1734456949204,0.164281,3966.9,3965.9,0.3748486]
[1734456949421,0.164281,3966.9,3966.1,0.1706]
[1734456952719,0.8104,3966.8,3965.5,0.1706]
[1734456953212,0.8104,3966.8,3965.5,0.19581472]
[1734456953360,0.8104,3966.8,3965.5,0.1706]
[1734456956095,0.8104,3966.8,3965.6,0.02521161]
[1734456956406,0.164281,3966.9,3965.7,0.5454486]
[1734456956818,0.164281,3966.9,3965.8,0.02521003]
[1734456957165,0.164281,3966.9,3965.7,0.5454486]
[1734456957869,0.8104,3966.8,3965.7,0.1706]
[1734456958088,0.164281,3966.9,3965.7,0.1706]
[1734456958089,0.164281,3966.9,3965.7,0.5454486]
[1734456958265,0.164281,3966.9,3965.9,0.1706]
[1734456958473,0.164281,3966.9,3966.0,0.02520843]
[1734456958675,0.164281,3966.9,3966.0,0.55]
[1734456958988,0.164281,3966.9,3966.2,5.37682587]
[1734456959716,0.164281,3966.9,3966.3,3.1706]
[1734456959921,0.164281,3966.9,3966.7,0.1706]
[1734456960076,0.164281,3966.9,3966.7,3.1706]
[1734456961990,0.164281,3966.9,3966.7,0.1706]
[1734456962195,0.164281,3966.9,3966.7,0.19580298]
[1734456962400,0.164281,3966.9,3966.7,0.1706]
[1734456962618,0.164281,3966.9,3966.7,0.84257406]
[1734456962816,0.164281,3966.9,3966.7,1.24262566]
[1734456963018,0.164281,3966.9,3966.8,0.5454486]
[1734456963649,0.164281,3966.9,3966.8,0.1706]
[1734456964006,0.164281,3966.9,3966.8,0.5454486]
[1734456964201,0.164281,3966.9,3966.8,0.9025138]
[1734456964402,0.164281,3966.9,3966.8,0.5276652]
[1734456964637,0.164281,3966.9,3966.4,0.1706]
[1734456965425,0.164281,3966.9,3966.4,0.5454486]
[1734456965745,0.164281,3966.9,3966.5,0.3748486]
[1734456965943,0.164281,3966.9,3966.4,0.1706]
[1734456966939,0.164281,3966.9,3966.0,0.55]
[1734456967131,0.164281,3966.9,3966.1,0.42328691]
[1734456968109,0.7715,3966.8,3966.1,0.42328691]
[1734456968311,0.7715,3966.8,3966.0,0.1706]
[1734456968910,0.7715,3966.8,3965.5,1.20798118]
[1734456969114,0.7715,3966.8,3965.2,0.3748486]
[1734456969430,0.7715,3966.8,3965.1,1.20798118]
[1734456969431,2.52096,3966.8,3965.1,0.1706]
[1734456969632,0.7715,3966.7,3964.7,0.1706]
[1734456969957,0.7715,3966.5,3964.8,0.13333229]
[1734456970169,3.15907315,3966.6,3964.8,0.13333229]
[1734456970170,0.7715,3966.3,3964.8,0.13333229]
[1734456970316,2.92359053,3966.4,3964.4,0.1706]
[1734456970317,2.52143,3966.0,3964.4,0.1706]
[1734456970509,2.52143,3966.0,3964.0,1.03738118]
[1734456970510,0.7715,3965.9,3964.0,0.1706]
[1734456970841,0.7715,3965.9,3964.1,0.86043425]
[1734456971039,0.7715,3965.9,3964.0,0.47862048]
[1734456971241,2.92359053,3965.5,3963.7,1.03738118]
[1734456971415,0.7715,3965.3,3963.4,1.03738118]
[1734456971616,0.7715,3965.2,3963.3,0.1706]
[1734456972057,0.7715,3965.2,3963.4,5.1007531]
[1734456972212,0.7715,3965.2,3963.9,0.1706]
[1734456972650,0.7715,3965.2,3964.0,0.02522033]
[1734456972821,0.7715,3965.2,3964.1,0.61194109]
[1734456973222,0.7715,3965.2,3963.9,0.1706]
[1734456974516,0.7715,3965.2,3963.4,0.30802048]
[1734456974716,2.52219,3964.8,3962.9,1.03738118]
[1734456974918,2.52219,3964.8,3962.7,1.55607178]
[1734456974919,3.0,3964.8,3962.6,0.1706]
[1734456975217,0.7715,3964.7,3962.7,0.65645241]
[1734456975419,1.44100905,3964.7,3962.7,0.65645241]
[1734456975637,1.44100905,3964.7,3962.7,0.30802048]
[1734456975839,1.44100905,3964.7,3962.8,0.02522716]
[1734456976046,0.7715,3964.7,3962.8,0.02522716]
[1734456976252,0.7715,3964.7,3962.7,0.30802048]
[1734456976464,0.7715,3964.7,3962.6,0.1706]
[1734456976465,0.7715,3964.7,3962.6,3.09419053]
[1734456976772,0.7715,3964.7,3962.7,3.0]
[1734456976978,0.7715,3964.7,3962.7,3.30802048]
[1734456977204,0.7715,3964.7,3962.8,0.67506429]
[1734456977459,0.7715,3964.7,3962.9,0.5752265]
[1734456978183,0.7715,3964.7,3962.9,0.88324698]
[1734456978527,0.7715,3964.7,3963.2,0.1706]
[1734456978976,0.7715,3964.7,3963.1,3.0]
[1734456979145,0.7715,3964.7,3963.2,0.6781611]
[1734456979349,0.7715,3964.7,3963.0,0.30802048]
[1734456980233,0.7715,3964.7,3962.9,0.55]
[1734456980449,0.7715,3964.7,3962.9,1.20645241]
[1734456980690,0.7715,3964.7,3963.1,3.0]
[1734456981597,0.7715,3964.7,3963.5,3.7206]
[1734456981896,1.68854549,3966.6,3963.9,3.55]
[1734456981897,0.7715,3965.6,3963.9,3.55]
[1734456982055,0.7715,3965.6,3964.2,2.92359053]
[1734456982372,0.7715,3965.6,3964.3,0.92365128]
[1734456982597,0.7715,3965.6,3964.3,3.92365128]
[1734456982736,3.08787153,3966.9,3964.7,3.0]
[1734456982737,0.8042,3966.8,3964.7,3.0]
[1734456982947,0.8042,3966.8,3964.9,0.55]
[1734456983160,0.8042,3966.8,3965.0,2.94880347]
[1734456983473,0.8042,3966.8,3965.1,3.0]
[1734456984048,0.8042,3966.8,3965.1,3.02521275]
[1734456986281,0.8042,3966.8,3965.4,2.92359053]
[1734456986592,0.8042,3966.8,3965.6,0.1706]
[1734456990571,0.8042,3966.8,3965.2,0.55]
[1734456990752,0.8042,3966.8,3965.1,3.1706]
[1734456991774,0.8042,3966.8,3965.1,0.1706]
[1734456992081,0.8042,3966.8,3964.4,0.30802048]
[1734456992082,0.8042,3966.8,3964.8,0.59235905]
[1734456992250,0.8042,3966.8,3964.9,0.02521571]
[1734456992674,0.8042,3966.8,3964.6,2.94880631]
[1734456992839,0.8042,3966.8,3964.6,2.92359053]
[1734456993035,0.8042,3966.8,3964.6,3.23161101]
[1734456993290,0.7698,3966.6,3964.6,0.30802048]
[1734456993440,0.7698,3966.6,3963.7,1.06259735]
[1734456993441,0.7698,3966.4,3963.9,0.1706]
[1734456993661,0.7698,3966.4,3964.0,0.37365027]
[1734456994021,0.7698,3966.4,3964.1,0.30802048]
[1734456994530,0.7698,3966.4,3964.2,0.37365027]
[1734456994677,0.7698,3966.4,3964.3,0.85802048]
[1734456994875,0.7698,3966.4,3964.6,0.1706]
[1734456995081,0.7698,3966.4,3964.7,0.02521578]
[1734456995459,0.7698,3966.4,3964.7,0.02521579]
[1734456995717,0.7698,3966.4,3964.7,0.57521579]
[1734456996010,0.7698,3966.4,3964.8,0.02521466]
[1734456996218,0.7698,3966.4,3964.9,0.36694052]
[1734456996417,0.7698,3966.4,3965.0,0.02521423]
[1734456996700,0.7698,3966.4,3965.3,0.55]
[1734456996902,0.7698,3966.4,3965.4,0.02521121]
[1734456997098,0.7698,3966.4,3965.3,0.57521127]
[1734456997259,0.7698,3966.4,3965.4,0.40942432]
[1734457002201,0.7698,3966.4,3964.3,0.1706]
[1734457002513,0.7698,3966.4,3964.5,0.02521706]
[1734457002729,0.7698,3966.4,3964.5,0.34843193]
[1734457003035,0.7698,3966.4,3964.4,0.4407433]
[1734457004297,0.7698,3966.4,3964.5,2.92359053]
[1734457004501,0.7698,3966.4,3964.6,3.0]
[1734457004696,0.7698,3966.4,3964.7,0.69143331]
[1734457004896,0.7698,3966.4,3964.8,0.02521572]
[1734457005134,0.7698,3966.4,3964.8,0.57521572]
[1734457005286,0.7698,3966.4,3964.7,0.69143331]
[1734457005707,0.7698,3966.4,3964.7,0.02521534]
[1734457005891,0.7698,3966.4,3964.9,2.92359053]
[1734457006078,0.7698,3966.4,3965.1,0.1706]
[1734457006932,0.7698,3966.4,3965.2,0.02521369]
[1734457007284,0.7698,3966.4,3965.4,3.0]
[1734457007485,0.7698,3966.4,3965.5,0.59488042]
[1734457007942,0.7698,3966.4,3965.2,0.55]
[1734457009619,0.7698,3966.4,3965.3,0.0252114]
[1734457010159,0.7698,3966.4,3965.2,0.55]
[1734457010312,0.7698,3966.4,3965.2,0.57521142]
[1734457010642,0.7698,3966.4,3965.2,0.55]
[1734457010842,0.7698,3966.4,3965.3,0.3997926]
[1734457011426,0.7698,3966.4,3965.3,0.74822453]
[1734457012240,0.7698,3966.4,3965.4,3.0]
[1734457013359,0.7698,3966.4,3965.5,0.02521146]
[1734457013553,0.7698,3966.4,3965.4,3.34843193]
[1734457013709,0.7698,3966.4,3965.5,0.69020788]
[1734457015007,0.7698,3966.4,3965.6,0.89843193]
[1734457015212,0.7698,3966.4,3965.8,3.55]
[1734457015446,0.7707,3966.8,3965.8,3.55]
[1734457016946,0.7707,3966.8,3965.8,3.57520819]
[1734457017247,0.7707,3966.8,3965.9,0.63005932]
[1734457022447,0.7707,3966.8,3965.3,2.75153426]
[1734457023050,0.7707,3966.8,3965.3,0.37458115]
[1734457023248,0.7707,3966.8,3964.9,2.37695311]
[1734457025329,0.8317,3966.6,3964.9,2.37695311]
[1734457026163,0.8317,3966.6,3964.5,1.34540166]
[1734457026164,0.8317,3966.3,3964.5,2.37695311]
[1734457026335,0.8317,3966.1,3964.2,1.03738118]
[1734457026531,0.8317,3965.9,3964.3,0.49704061]